fUSD/lending_fUSD_20250905
["ID","MTS","AMOUNT","RATE_DAILY","PERIOD"]
[383667453,1757077871387,-400.0,0.00025479,2]
[383667454,1757077871396,-400.0,0.00025479,2]
[383667455,1757077871406,-400.0,0.00025479,2]
[383667456,1757077871415,-400.0,0.00025479,2]
[383667457,1757077871426,-400.0,0.00025479,2]
[383667458,1757077871436,-400.0,0.00025479,2]
[383667459,1757077871445,-2042.99,0.00025479,2]
[383667460,1757077871455,-400.0,0.00025479,2]
[383667461,1757077871465,-400.0,0.00025479,2]
[383667462,1757077871474,-1218.17,0.00025479,2]
[383667463,1757077871483,-209.6078215,0.00025479,2]
[383667464,1757077871492,-400.0,0.00025479,2]
[383667465,1757077871501,-400.0,0.00025479,2]
[383667466,1757077871511,-400.0,0.00025479,2]
[383667467,1757077871523,-294.33069155,0.00025479,2]
[383667468,1757077871533,-400.0,0.00025479,2]
[383667469,1757077871542,-400.0,0.00025479,2]
[383667470,1757077871551,-400.0,0.00025479,2]
[383667471,1757077871562,-400.0,0.00025479,2]
[383667472,1757077871572,-400.0,0.00025479,2]
[383667473,1757077871583,-400.0,0.00025479,2]
[383667474,1757077871594,-400.0,0.00025479,2]
[383667475,1757077871604,-400.0,0.00025479,2]
[383667476,1757077871614,-260.55995818,0.00025479,2]
[383667477,1757077871623,-400.0,0.00025479,2]
[383667478,1757077871633,-400.0,0.00025479,2]
[383667479,1757077871643,-400.0,0.00025479,2]
[383667480,1757077871652,-629.0,0.00025479,2]
[383667481,1757077871662,-400.0,0.00025479,2]
[383667482,1757077871672,-488.58,0.00025479,2]
[383667483,1757077871683,-400.0,0.00025479,2]
[383667484,1757077871693,-400.0,0.00025479,2]
[383667485,1757077871708,-400.0,0.00025479,2]
[383667486,1757077871718,-400.0,0.00025479,2]
[383667487,1757077871729,-400.0,0.00025479,2]
[383667488,1757077871740,-1956.42,0.00025479,2]
[383667489,1757077871750,-400.0,0.00025479,2]
[383667490,1757077871760,-400.0,0.00025479,2]
[383667491,1757077871770,-462.88,0.00025479,2]
[383667492,1757077871780,-400.0,0.00025479,2]
[383667493,1757077871789,-400.0,0.00025479,2]
[383667494,1757077871799,-400.0,0.00025479,2]
[383667496,1757077871809,-400.0,0.00025479,2]
[383667497,1757077871818,-400.0,0.00025479,2]
[383667498,1757077871828,-400.0,0.00025479,2]
[383667503,1757077871951,-400.0,0.00025479,2]
[383667505,1757077871962,-400.0,0.00025479,2]
[383667506,1757077871971,-419.8050304,0.00025479,2]
[383667507,1757077871981,-400.0,0.00025479,2]
[383667509,1757077871990,-400.0,0.00025479,2]
[383667510,1757077872000,-400.0,0.00025479,2]
[383667512,1757077872010,-400.0,0.00025479,2]
[383667513,1757077872019,-191.75865916,0.00025479,2]
[383667514,1757077872028,-400.0,0.00025479,2]
[383667516,1757077872038,-400.0,0.00025479,2]
[383667517,1757077872048,-400.0,0.00025479,2]
[383667518,1757077872057,-400.0,0.00025479,2]
[383667519,1757077872067,-400.0,0.00025479,2]
[383667521,1757077872076,-400.0,0.00025479,2]
[383667522,1757077872086,-400.0,0.00025479,2]
[383667524,1757077872095,-400.0,0.00025479,2]
[383667525,1757077872105,-400.0,0.00025479,2]
[383667526,1757077872115,-455.46,0.00025479,2]
[383667527,1757077872125,-400.0,0.00025479,2]
[383667529,1757077872135,-400.0,0.00025479,2]
[383667530,1757077872144,-636.36,0.00025479,2]
[383667532,1757077872154,-400.0,0.00025479,2]
[383667533,1757077872164,-400.0,0.00025479,2]
[383667534,1757077872174,-400.0,0.00025479,2]
[383667536,1757077872184,-400.0,0.00025479,2]
[383667537,1757077872193,-409.02161606,0.00025479,2]
[383667538,1757077872204,-400.0,0.00025479,2]
[383667540,1757077872213,-400.0,0.00025479,2]
[383667541,1757077872223,-400.0,0.00025479,2]
[383667542,1757077872234,-400.0,0.00025479,2]
[383667544,1757077872244,-3236.74,0.00025479,2]
[383667545,1757077872254,-400.0,0.00025479,2]
[383667546,1757077872264,-400.0,0.00025479,2]
[383667548,1757077872274,-1253.06,0.00025479,2]
[383667549,1757077872284,-400.0,0.00025479,2]
[383667551,1757077872293,-400.0,0.00025479,2]
[383667552,1757077872303,-400.0,0.00025479,2]
[383667553,1757077872313,-400.0,0.00025479,2]
[383667555,1757077872322,-400.0,0.00025479,2]
[383667556,1757077872332,-400.0,0.00025479,2]
[383667558,1757077872342,-400.0,0.00025479,2]
[383667559,1757077872352,-400.0,0.00025479,2]
[383667561,1757077872363,-400.0,0.00025479,2]
[383667562,1757077872373,-400.0,0.00025479,2]
[383667563,1757077872384,-400.0,0.00025479,2]
[383667565,1757077872394,-794.6,0.00025479,2]
[383667566,1757077872403,-400.0,0.00025479,2]
[383667567,1757077872413,-400.0,0.00025479,2]
[383667568,1757077872423,-400.0,0.00025479,2]
[383667569,1757077872433,-400.0,0.00025479,2]
[383667570,1757077872443,-400.0,0.00025479,2]
[383667571,1757077872453,-400.0,0.00025479,2]
[383667572,1757077872463,-400.0,0.00025479,2]
[383667573,1757077872472,-400.0,0.00025479,2]
[383667574,1757077872482,-400.0,0.00025479,2]
[383667575,1757077872492,-5554.53,0.00025479,2]
[383667576,1757077872501,-400.0,0.00025479,2]
[383667577,1757077872511,-400.0,0.00025479,2]
[383667578,1757077872521,-400.0,0.00025479,2]
[383667579,1757077872531,-400.0,0.00025479,2]
[383667580,1757077872540,-400.0,0.00025479,2]
[383667581,1757077872550,-400.0,0.00025479,2]
[383667582,1757077872560,-400.0,0.00025479,2]
[383667583,1757077872571,-400.0,0.00025479,2]
[383667584,1757077872592,-400.0,0.00025479,2]
[383667585,1757077872602,-400.0,0.00025479,2]
[383667586,1757077872612,-400.0,0.00025479,2]
[383667587,1757077872622,-400.0,0.00025479,2]
[383667588,1757077872631,-400.0,0.00025479,2]
[383667589,1757077872642,-400.0,0.00025479,2]
[383667590,1757077872652,-400.0,0.00025479,2]
[383667591,1757077872661,-1067.8,0.00025479,2]
[383667592,1757077872670,-235.02927893,0.00025479,2]
[383667593,1757077872999,-164.97072107,0.00025479,2]
[383667594,1757077873009,-841.49009894,0.00025479,2]
[383667595,1757077873020,-319.31990106,0.00025479,2]
[383667596,1757077873030,-471.3,0.00025479,2]
[383667597,1757077873039,-400.0,0.00025479,2]
[383667598,1757077873049,-400.0,0.00025479,2]
[383667599,1757077873059,-400.0,0.00025479,2]
[383667600,1757077873068,-219.23100145,0.00025479,2]
[383667601,1757077873079,-180.76899855,0.00025479,2]
[383667602,1757077873089,-400.0,0.00025479,2]
[383667603,1757077873098,-1682.86,0.00025479,2]
[383667604,1757077873107,-400.0,0.00025479,2]
[383667605,1757077873117,-400.0,0.00025479,2]
[383667606,1757077873126,-394.16537389,0.00025479,2]
[383667647,1757077975182,714.95016927,0.0003,120]
[383667650,1757078029466,154.6,0.00013699,2]
[383667656,1757078115366,850.39807703,0.000301,120]
[383667662,1757078196426,500.0,0.00019178,2]
[383667665,1757078224612,200.4,0.0002,2]
[383667667,1757078231367,-240.13,0.00020032,2]
[383667675,1757078560108,-161.94005737,0.00020032,2]
[383667676,1757078584661,-97.92994263,0.00020032,2]
[383667677,1757078709055,295188.12587864,0.0002,2]
[383667678,1757078711328,3024.28280104,0.000154,2]
[383667679,1757078717112,93432.09511341,0.0002,2]
[383667689,1757078737876,1025.84710057,9e-05,2]
[383667692,1757078819759,-203.02010102,0.000201,2]
[383667693,1757078819787,-1087.0,0.00021765,2]
[383667694,1757078819813,-158.0,0.00022,2]
[383667695,1757078819839,-292.03745318,0.00022,2]
[383667696,1757078840358,1259.9424458,0.0001305,2]
[383667697,1757078840382,3994.15530789,0.0001305,2]
[383667698,1757078895697,369.19571865,0.000135,2]
[383667699,1757078895851,302.19474713,0.000125,2]
[383667700,1757078917923,263.83517656,0.000107,2]
[383667704,1757078927820,160.3293128,0.00012,2]
[383667706,1757079026528,267.6,0.00011487,2]
[383667707,1757079026753,267.6,0.00012092,2]
[383667708,1757079027159,267.6,0.00012696,2]
[383667709,1757079027398,267.6,0.00013301,2]
[383667710,1757079027649,267.6,0.00013906,2]
[383667711,1757079027863,267.6,0.0001451,2]
[383667712,1757079028195,216.20443667,0.00015115,2]
[383667713,1757079028221,51.39556333,0.00015115,2]
[383667714,1757079028593,267.6,0.00015719,2]
[383667715,1757079028812,267.6,0.00016324,2]
[383667716,1757079029010,267.6,0.00016929,2]
[383667717,1757079029230,267.6,0.00017533,2]
[383667718,1757079029444,267.6,0.00018138,2]
[383667719,1757079029664,267.6,0.00018742,2]
[383667720,1757079029880,267.6,0.00019347,2]
[383667721,1757079030342,267.6,0.00019952,2]
[383667728,1757079031795,-267.6,0.00020556,2]
[383667729,1757079031806,-267.6,0.00021161,2]
[383667730,1757079031816,-267.6,0.00021765,2]
[383667731,1757079031826,-827.4,0.00022,4]
[383667732,1757079031836,-267.6,0.0002237,2]
[383667733,1757079031846,-217.0,0.000224,2]
[383667734,1757079031860,-150.0,0.0002266,4]
[383667735,1757079031869,-150.0,0.0002266,4]
[383667736,1757079031879,-150.0,0.0002266,4]
[383667737,1757079031888,-150.0,0.0002266,4]
[383667738,1757079031899,-150.0,0.0002266,4]
[383667739,1757079031909,-500.0,0.0002272,2]
[383667740,1757079031919,-1087.0,0.0002291,2]
[383667741,1757079031930,-292.03745316,0.0002295,2]
[383667742,1757079031940,-250.0,0.00023009,2]
[383667743,1757079031949,-151.32,0.000231,2]
[383667744,1757079031959,-1703.74,0.00023154,2]
[383667745,1757079031971,-300.0,0.00023284,2]
[383667746,1757079031981,-1200.0,0.00023284,2]
[383667747,1757079031991,-14058.38226417,0.00023285,2]
[383667748,1757079032000,-186.06,0.00023548,2]
[383667749,1757079032010,-333.42,0.00023563,2]
[383667750,1757079032020,-212.0,0.0002358,2]
[383667751,1757079032030,-1588.24,0.0002361,2]
[383667752,1757079032039,-480.36,0.00023662,2]
[383667753,1757079032049,-151.0,0.00023695,2]
[383667754,1757079032059,-248.71531821,0.00023695,2]
[383667755,1757079032068,-160.0,0.0002376,7]
[383667756,1757079032077,-24.76280511,0.00023799,2]
[383667757,1757079032089,-149.23719489,0.00023799,2]
[383667758,1757079032099,-3316.9600481,0.000238,7]
[383667759,1757079032123,-267.6,0.00022975,2]
[383667760,1757079032133,-454.86133654,0.000238,7]
[383667761,1757079032144,-501.25332309,0.000238,7]
[383667762,1757079032155,-426.49638054,0.000238,7]
[383667763,1757079032167,-56730.28322976,0.000238,7]
[383667764,1757079032180,-4446.62,0.0002382,2]
[383667765,1757079032190,-292.03745316,0.000239,2]
[383667766,1757079032199,-150.30009565,0.000239,2]
[383667767,1757079032209,-600.0,0.00023986,2]
[383667768,1757079032221,-151.0,0.00023986,2]
[383667769,1757079032231,-200.0,0.00023986,2]
[383667770,1757079032241,-60720.57194322,0.00024,2]
[383667771,1757079032250,-1000.67724963,0.00024,2]
[383667773,1757079032259,-55.41271937,0.00024,5]
[383667775,1757079032271,-4286.2799999,0.00024,5]
[383667778,1757079032282,-658.30876466,0.00024,5]
[383667780,1757079032292,-500.0,0.00024086,2]
[383667782,1757079032302,-1087.0,0.00024116,2]
[383667785,1757079032312,-250.0,0.000242,2]
[383667788,1757079032321,-200.0,0.00024238,2]
[383667791,1757079032330,-151.0,0.00024534,2]
[383667793,1757079032339,-1480.0982,0.00024557,2]
[383667795,1757079032349,-1261.8875,0.00024557,2]
[383667797,1757079032359,-91.70553534,0.00024557,4]
[383667799,1757079032371,-473.30141423,0.00024557,4]
[383667801,1757079032380,-417.2061878,0.00024557,2]
[383667803,1757079032389,-909.49239797,0.00024557,2]
[383667805,1757079032400,-1300.0,0.00024557,2]
[383667808,1757079032416,-12068.92077224,0.00024557,2]
[383667810,1757079032426,-1000.0,0.000246,2]
[383667812,1757079032435,-1000.0,0.000246,2]
[383667814,1757079032446,-1000.0,0.000246,3]
[383667816,1757079032456,-1000.0,0.000246,3]
[383667818,1757079032466,-1000.0,0.000246,3]
[383667820,1757079032476,-1000.0,0.000246,3]
[383667822,1757079032485,-1000.0,0.000246,4]
[383667824,1757079032495,-1041.0,0.000246,4]
[383667826,1757079032505,-1000.0,0.000246,3]
[383667828,1757079032514,-1000.0,0.000246,3]
[383667830,1757079032524,-370.02,0.00024605,2]
[383667832,1757079032533,-153.77,0.00024647,2]
[383667834,1757079032543,-333.0,0.00024647,2]
[383667836,1757079032553,-585.69153017,0.0002465,2]
[383667838,1757079032563,-155.536,0.00024656,2]
[383667840,1757079032574,-400.0,0.00024657,2]
[383667842,1757079032583,-400.0,0.00024657,2]
[383667844,1757079032593,-400.0,0.00024657,2]
[383667846,1757079032603,-401.87890627,0.00024657,2]
[383667848,1757079032613,-400.0,0.00024657,2]
[383667850,1757079032622,-400.0,0.00024657,2]
[383667852,1757079032632,-400.0,0.00024657,2]
[383667855,1757079032645,-400.0,0.00024657,2]
[383667857,1757079032654,-400.0,0.00024657,2]
[383667859,1757079032664,-400.0,0.00024657,2]
[383667890,1757079032942,-400.0,0.00024657,2]
[383667892,1757079032954,-532.55,0.00024657,2]
[383667894,1757079032964,-400.0,0.00024657,2]
[383667896,1757079032974,-400.0,0.00024657,2]
[383667898,1757079032983,-400.0,0.00024657,2]
[383667900,1757079032992,-400.0,0.00024657,2]
[383667902,1757079033002,-453.39,0.00024657,2]
[383667904,1757079033011,-400.0,0.00024657,2]
[383667906,1757079033023,-400.0,0.00024657,2]
[383667908,1757079033033,-400.0,0.00024657,2]
[383667910,1757079033043,-400.0,0.00024657,2]
[383667912,1757079033053,-400.0,0.00024657,2]
[383667914,1757079033063,-400.0,0.00024657,2]
[383667916,1757079033072,-400.0,0.00024657,2]
[383667918,1757079033086,-400.0,0.00024657,2]
[383667920,1757079033107,-400.0,0.00024657,2]
[383667922,1757079033126,-400.0,0.00024657,2]
[383667924,1757079033136,-400.0,0.00024657,2]
[383667926,1757079033146,-400.0,0.00024657,2]
[383667928,1757079033155,-400.0,0.00024657,2]
[383667930,1757079033165,-400.0,0.00024657,2]
[383667932,1757079033175,-400.0,0.00024657,2]
[383667934,1757079033186,-400.0,0.00024657,2]
[383667936,1757079033197,-400.0,0.00024657,2]
[383667939,1757079033208,-400.0,0.00024657,2]
[383667941,1757079033219,-400.0,0.00024657,2]
[383667943,1757079033229,-400.0,0.00024657,2]
[383667945,1757079033239,-400.0,0.00024657,2]
[383667947,1757079033249,-400.0,0.00024657,2]
[383667949,1757079033258,-400.0,0.00024657,2]
[383667951,1757079033268,-400.0,0.00024657,2]
[383667953,1757079033277,-400.0,0.00024657,2]
[383667955,1757079033287,-400.0,0.00024657,2]
[383667957,1757079033296,-400.0,0.00024657,2]
[383667959,1757079033306,-400.0,0.00024657,2]
[383667961,1757079033315,-400.0,0.00024657,2]
[383667963,1757079033325,-400.0,0.00024657,2]
[383667964,1757079033334,-401.71672436,0.00024657,2]
[383667967,1757079033344,-400.0,0.00024657,2]
[383667969,1757079033353,-441.3,0.00024657,2]
[383667971,1757079033363,-400.0,0.00024657,2]
[383667973,1757079033373,-400.0,0.00024657,2]
[383667975,1757079033382,-400.0,0.00024657,2]
[383667977,1757079033392,-500.0,0.00024657,2]
[383667979,1757079033402,-400.0,0.00024657,2]
[383667981,1757079033411,-400.0,0.00024657,2]
[383667983,1757079033421,-500.0,0.00024657,2]
[383667985,1757079033431,-400.0,0.00024657,2]
[383667987,1757079033440,-400.0,0.00024657,2]
[383667989,1757079033450,-402.46074085,0.00024657,2]
[383667991,1757079033460,-400.0,0.00024657,2]
[383667993,1757079033471,-400.0,0.00024657,2]
[383667995,1757079033481,-400.0,0.00024657,2]
[383667997,1757079033492,-400.0,0.00024657,2]
[383668000,1757079033513,-400.0,0.00024657,2]
[383668002,1757079033523,-400.0,0.00024657,2]
[383668004,1757079033533,-400.0,0.00024657,2]
[383668006,1757079033543,-400.0,0.00024657,2]
[383668008,1757079033553,-400.0,0.00024657,2]
[383668010,1757079033563,-597.93,0.00024657,2]
[383668012,1757079033573,-943.58,0.00024657,2]
[383668015,1757079033584,-400.0,0.00024657,2]
[383668017,1757079033594,-400.0,0.00024657,2]
[383668019,1757079033604,-381.83534835,0.00024657,2]
[383668021,1757079033615,-400.0,0.00024657,2]
[383668023,1757079033625,-404.8253181,0.00024657,2]
[383668025,1757079033636,-400.0,0.00024657,2]
[383668027,1757079033646,-480.17033789,0.00024657,2]
[383668029,1757079033657,-400.0,0.00024657,2]
[383668031,1757079033667,-400.0,0.00024657,2]
[383668033,1757079033677,-400.0,0.00024657,2]
[383668035,1757079033686,-400.0,0.00024657,2]
[383668037,1757079033696,-400.0,0.00024657,2]
[383668039,1757079033706,-400.0,0.00024657,2]
[383668041,1757079033717,-400.0,0.00024657,2]
[383668043,1757079033726,-400.0,0.00024657,2]
[383668045,1757079033735,-400.0,0.00024657,2]
[383668047,1757079033745,-400.0,0.00024657,2]
[383668049,1757079033756,-400.0,0.00024657,2]
[383668051,1757079033766,-400.0,0.00024657,2]
[383668053,1757079033775,-400.0,0.00024657,2]
[383668055,1757079033785,-400.0,0.00024657,2]
[383668057,1757079033794,-400.0,0.00024657,2]
[383668059,1757079033804,-400.0,0.00024657,2]
[383668061,1757079033814,-411.35418086,0.00024657,2]
[383668064,1757079033824,-400.0,0.00024657,2]
[383668066,1757079033834,-400.0,0.00024657,2]
[383668068,1757079033844,-400.0,0.00024657,2]
[383668070,1757079033857,-400.0,0.00024657,2]
[383668072,1757079033867,-400.0,0.00024657,2]
[383668074,1757079033877,-400.0,0.00024657,2]
[383668076,1757079033887,-400.0,0.00024657,2]
[383668078,1757079033899,-400.0,0.00024657,2]
[383668080,1757079033909,-400.0,0.00024657,2]
[383668082,1757079033919,-400.0,0.00024657,2]
[383668084,1757079033929,-401.82185461,0.00024657,2]
[383668086,1757079033938,-400.0,0.00024657,2]
[383668088,1757079033948,-348.76086628,0.00024657,2]
[383668090,1757079033961,-400.0,0.00024657,2]
[383668092,1757079033973,-400.0,0.00024657,2]
[383668094,1757079033983,-400.0,0.00024657,2]
[383668096,1757079033994,-400.0,0.00024657,2]
[383668099,1757079034003,-400.0,0.00024657,2]
[383668101,1757079034014,-400.0,0.00024657,2]
[383668103,1757079034024,-212.82769244,0.00024657,2]
[383668105,1757079034033,-410.84864475,0.00024657,2]
[383668107,1757079034043,-391.49194496,0.00024657,2]
[383668109,1757079034054,-400.0,0.00024657,2]
[383668111,1757079034064,-400.0,0.00024657,2]
[383668113,1757079034073,-400.0,0.00024657,2]
[383668115,1757079034083,-400.0,0.00024657,2]
[383668117,1757079034094,-400.0,0.00024657,2]
[383668119,1757079034104,-400.0,0.00024657,2]
[383668121,1757079034113,-400.0,0.00024657,2]
[383668123,1757079034123,-400.0,0.00024657,2]
[383668125,1757079034133,-400.0,0.00024657,2]
[383668127,1757079034143,-400.0,0.00024657,2]
[383668129,1757079034153,-400.0,0.00024657,2]
[383668132,1757079034163,-400.0,0.00024657,2]
[383668133,1757079034172,-400.0,0.00024657,2]
[383668136,1757079034182,-400.0,0.00024657,2]
[383668138,1757079034192,-400.0,0.00024657,2]
[383668140,1757079034202,-400.0,0.00024657,2]
[383668142,1757079034211,-400.0,0.00024657,2]
[383668144,1757079034222,-400.0,0.00024657,2]
[383668146,1757079034232,-400.0,0.00024657,2]
[383668148,1757079034242,-422.13704719,0.00024657,2]
[383668150,1757079034252,-410.4127379,0.00024657,2]
[383668152,1757079034261,-407.32080497,0.00024657,2]
[383668154,1757079034271,-400.0,0.00024657,2]
[383668156,1757079034280,-400.0,0.00024657,2]
[383668158,1757079034290,-408.76455546,0.00024657,2]
[383668160,1757079034300,-400.0,0.00024657,2]
[383668162,1757079034310,-400.0,0.00024657,2]
[383668164,1757079034319,-400.0,0.00024657,2]
[383668166,1757079034329,-400.0,0.00024657,2]
[383668168,1757079034339,-400.0,0.00024657,2]
[383668170,1757079034349,-413.80256235,0.00024657,2]
[383668173,1757079034359,-400.0,0.00024657,2]
[383668174,1757079034369,-400.0,0.00024657,2]
[383668177,1757079034379,-500.0,0.00024657,2]
[383668179,1757079034389,-500.0,0.00024657,2]
[383668181,1757079034401,-400.0,0.00024657,2]
[383668183,1757079034412,-400.0,0.00024657,2]
[383668185,1757079034422,-400.0,0.00024657,2]
[383668187,1757079034432,-400.0,0.00024657,2]
[383668189,1757079034442,-400.0,0.00024657,2]
[383668191,1757079034452,-400.0,0.00024657,2]
[383668193,1757079034462,-423.46523252,0.00024657,2]
[383668195,1757079034472,-674.82,0.00024657,2]
[383668197,1757079034483,-400.0,0.00024657,2]
[383668200,1757079034493,-400.0,0.00024657,2]
[383668202,1757079034503,-400.0,0.00024657,2]
[383668204,1757079034514,-400.0,0.00024657,2]
[383668206,1757079034524,-400.0,0.00024657,2]
[383668208,1757079034536,-410.90457669,0.00024657,2]
[383668210,1757079034546,-400.0,0.00024657,2]
[383668212,1757079034557,-400.0,0.00024657,2]
[383668214,1757079034567,-400.0,0.00024657,2]
[383668216,1757079034578,-345.71120374,0.00024657,2]
[383668218,1757079034588,-400.0,0.00024657,2]
[383668220,1757079034598,-400.0,0.00024657,2]
[383668222,1757079034608,-400.0,0.00024657,2]
[383668224,1757079034618,-400.0,0.00024657,2]
[383668226,1757079034628,-400.0,0.00024657,2]
[383668228,1757079034638,-400.0,0.00024657,2]
[383668230,1757079034648,-400.0,0.00024657,2]
[383668232,1757079034657,-400.0,0.00024657,2]
[383668234,1757079034667,-400.0,0.00024657,2]
[383668236,1757079034676,-400.0,0.00024657,2]
[383668238,1757079034686,-400.0,0.00024657,2]
[383668240,1757079034697,-400.0,0.00024657,2]
[383668242,1757079034706,-400.0,0.00024657,2]
[383668244,1757079034716,-400.0,0.00024657,2]
[383668246,1757079034726,-400.0,0.00024657,2]
[383668248,1757079034737,-400.0,0.00024657,2]
[383668250,1757079034747,-400.0,0.00024657,2]
[383668253,1757079034757,-410.84454424,0.00024657,2]
[383668255,1757079034767,-400.0,0.00024657,2]
[383668257,1757079034777,-400.0,0.00024657,2]
[383668259,1757079034787,-405.76373568,0.00024657,2]
[383668261,1757079034797,-400.0,0.00024657,2]
[383668263,1757079034807,-219.19232259,0.00024657,2]
[383668265,1757079034817,-400.0,0.00024657,2]
[383668266,1757079034826,-1000.0,0.00024657,2]
[383668267,1757079034836,-400.0,0.00024657,2]
[383668268,1757079034846,-400.0,0.00024657,2]
[383668269,1757079034862,-400.0,0.00024657,2]
[383668270,1757079034872,-890.78,0.00024657,2]
[383668271,1757079034882,-403.79240199,0.00024657,2]
[383668272,1757079034891,-400.0,0.00024657,2]
[383668273,1757079034903,-400.0,0.00024657,2]
[383668274,1757079034914,-400.0,0.00024657,2]
[383668275,1757079034924,-400.0,0.00024657,2]
[383668277,1757079034934,-400.0,0.00024657,2]
[383668279,1757079034944,-400.0,0.00024657,2]
[383668281,1757079034954,-400.0,0.00024657,2]
[383668283,1757079034963,-500.0,0.00024657,2]
[383668285,1757079034976,-400.0,0.00024657,2]
[383668287,1757079034986,-500.0,0.00024657,2]
[383668290,1757079034996,-400.0,0.00024657,2]
[383668292,1757079035006,-400.0,0.00024657,2]
[383668294,1757079035017,-400.0,0.00024657,2]
[383668296,1757079035026,-400.0,0.00024657,2]
[383668298,1757079035036,-400.0,0.00024657,2]
[383668299,1757079035045,-400.0,0.00024657,2]
[383668300,1757079035055,-400.0,0.00024657,2]
[383668301,1757079035065,-400.0,0.00024657,2]
[383668302,1757079035074,-400.0,0.00024657,2]
[383668303,1757079035084,-400.0,0.00024657,2]
[383668304,1757079035095,-524.75,0.00024657,2]
[383668305,1757079035105,-284.91271912,0.00024657,2]
[383668306,1757079035115,-400.0,0.00024657,2]
[383668307,1757079035125,-400.0,0.00024657,2]
[383668308,1757079035135,-400.0,0.00024657,2]
[383668309,1757079035145,-400.0,0.00024657,2]
[383668310,1757079035155,-400.0,0.00024657,2]
[383668311,1757079035164,-400.0,0.00024657,2]
[383668312,1757079035174,-400.0,0.00024657,2]
[383668313,1757079035184,-400.0,0.00024657,2]
[383668314,1757079035194,-400.0,0.00024657,2]
[383668315,1757079035204,-400.0,0.00024657,2]
[383668316,1757079035214,-400.0,0.00024657,2]
[383668317,1757079035225,-400.0,0.00024657,2]
[383668318,1757079035235,-400.0,0.00024657,2]
[383668319,1757079035244,-400.0,0.00024657,2]
[383668320,1757079035254,-400.0,0.00024657,2]
[383668321,1757079035264,-400.0,0.00024657,2]
[383668322,1757079035274,-400.0,0.00024657,2]
[383668323,1757079035283,-400.0,0.00024657,2]
[383668324,1757079035293,-400.0,0.00024657,2]
[383668325,1757079035303,-400.0,0.00024657,2]
[383668326,1757079035316,-433.76,0.00024657,2]
[383668327,1757079035325,-400.0,0.00024657,2]
[383668328,1757079035335,-400.0,0.00024657,2]
[383668329,1757079035344,-400.0,0.00024657,2]
[383668330,1757079035353,-400.0,0.00024657,2]
[383668331,1757079035364,-400.0,0.00024657,2]
[383668332,1757079035373,-400.0,0.00024657,2]
[383668333,1757079035383,-400.0,0.00024657,2]
[383668334,1757079035393,-400.0,0.00024657,2]
[383668335,1757079035402,-400.0,0.00024657,2]
[383668336,1757079035412,-400.0,0.00024657,2]
[383668337,1757079035422,-400.0,0.00024657,2]
[383668338,1757079035432,-400.0,0.00024657,2]